Workbook

Sheet Information
A1: Source | B1: Volume II. Standards for Automated Reporting
A2: Author | B2: California Cancer Registry, Cancer Informatics and IT Systems Unit
A3: Report Date | B3: 2025-01-05
A4: Version | B4: Version 26
A5: Contact | B5: CDSRBHelp@cdph.ca.gov>
A6: CCR Standards on Reporting Cancer in California | B6: =HYPERLINK("https://www.ccrcal.org/submit-data/cancer-registrars-hospitals-and-facilities/reporting-by-cancer-registrars/#volumes-anchor", "https://www.ccrcal.org/submit-data/cancer-registrars-hospitals-and-facilities/reporting-by-cancer-registrars/#volumes-anchor") -> https://www.ccrcal.org/submit-data/cancer-registrars-hospitals-and-facilities/reporting-by-cancer-registrars/#volumes-anchor

Sheet Content
A1: Table of Contents
A2: Table | B2: Description
A3: Appendix A | B3: Appendix A: New Case and Modified Record Items (NAACCR Version 26.0)
A4: Appendix D | B4: Appendix D: Deletion Record
A5: Appendix S | B5: Appendix S: Shared Follow-Up Record Layout

Sheet A-NAACCR Abstract
A1: Appendix A: New Case and Modified Record Items (NAACCR Version 26.0)
A2: Item Name | B2: XML NAACCR ID | C2: Parent XML Element | D2: Section | E2: NAACCR Item # | F2: Length | G2: Update Triggers Modified Record | H2: CCR Required from Reporting Facility Software | I2: CCR Requirement Status Notes | J2: Supplied by CCR | K2: Revision Notes
A3: Ambiguous Terminology DX | B3: ambiguousTerminologyDx | C3: Tumor | D3: Cancer Identification | E3: 442 | F3: 1 | G3: yes | H3: conditional | I3: Not required for DX Years < 2007 and DX Years > 2012 Required for DX Years 2007 - 2012
A4: Behavior (92-00) ICD-O-2 | B4: behaviorIcdO2 | C4: Tumor | D4: Cancer Identification | E4: 430 | F4: 1 | G4: yes | H4: conditional | I4: Required for DX Year < 2001 | K4: Item 430 is a subset of item 419.
A5: Behavior Code ICD-O-3 | B5: behaviorCodeIcdO3 | C5: Tumor | D5: Cancer Identification | E5: 523 | F5: 1 | G5: yes | H5: yes | K5: Item 523 is a subset of item 521.
A6: Casefinding Source | B6: casefindingSource | C6: Tumor | D6: Cancer Identification | E6: 501 | F6: 2 | G6: yes | H6: yes
A7: Date Conclusive DX | B7: dateConclusiveDx | C7: Tumor | D7: Cancer Identification | E7: 443 | F7: 8 | G7: yes | H7: conditional | I7: Not required for DX Years < 2007 and DX Years > 2012 Required for DX Years 2007 - 2012
A8: Date of Diagnosis | B8: dateOfDiagnosis | C8: Tumor | D8: Cancer Identification | E8: 390 | F8: 8 | G8: yes | H8: yes
A9: Date of Mult Tumors | B9: dateOfMultTumors | C9: Tumor | D9: Cancer Identification | E9: 445 | F9: 8 | G9: yes | H9: conditional | I9: Not required for DX Years < 2007 and DX Years > 2012 Required for DX Years 2007 - 2012
A10: Diagnostic Confirmation | B10: diagnosticConfirmation | C10: Tumor | D10: Cancer Identification | E10: 490 | F10: 1 | G10: yes | H10: yes
A11: Grade | B11: grade | C11: Tumor | D11: Cancer Identification | E11: 440 | F11: 1 | G11: yes | H11: conditional | I11: Required for DX Year < 2018
A12: Grade Path System | B12: gradePathSystem | C12: Tumor | D12: Cancer Identification | E12: 449 | F12: 1 | G12: yes | H12: conditional | I12: Schema related, not required for DX Year < 2010 and > 2015
A13: Grade Path Value | B13: gradePathValue | C13: Tumor | D13: Cancer Identification | E13: 441 | F13: 1 | G13: yes | H13: conditional | I13: Schema related, not required for DX Year < 2010 and > 2015
A14: Histologic Type ICD-O-3 | B14: histologicTypeIcdO3 | C14: Tumor | D14: Cancer Identification | E14: 522 | F14: 4 | G14: yes | H14: yes | K14: Item 522 is a subset of item 521
A15: Histology (92-00) ICD-O-2 | B15: histologyIcdO2 | C15: Tumor | D15: Cancer Identification | E15: 420 | F15: 4 | G15: yes | H15: conditional | I15: Required for DX Year < 2001 | K15: Item 420 is a subset of Item 419.
A16: Laterality | B16: laterality | C16: Tumor | D16: Cancer Identification | E16: 410 | F16: 1 | G16: yes | H16: yes
A17: Morph Coding Sys--Current | B17: morphCodingSysCurrent | C17: Tumor | D17: Cancer Identification | E17: 470 | F17: 1 | G17: no | H17: no | J17: gen for extract
A18: Morph Coding Sys--Originl | B18: morphCodingSysOriginl | C18: Tumor | D18: Cancer Identification | E18: 480 | F18: 1 | G18: no | H18: no | J18: gen for extract
A19: Mult Tum Rpt as One Prim | B19: multTumRptAsOnePrim | C19: Tumor | D19: Cancer Identification | E19: 444 | F19: 2 | G19: yes | H19: conditional | I19: Not required for DX Years < 2007 and DX Years > 2012 Required for DX Years 2007 - 2012
A20: Multiplicity Counter | B20: multiplicityCounter | C20: Tumor | D20: Cancer Identification | E20: 446 | F20: 2 | G20: yes | H20: conditional | I20: Not required for DX Years < 2007 and DX Years > 2012 Required for DX Years 2007 - 2012
A21: Primary Site | B21: primarySite | C21: Tumor | D21: Cancer Identification | E21: 400 | F21: 4 | G21: yes | H21: yes
A22: Sequence Number--Central | B22: sequenceNumberCentral | C22: Tumor | D22: Cancer Identification | E22: 380 | F22: 2 | G22: no | H22: no | J22: gen in db
A23: Site Coding Sys--Current | B23: siteCodingSysCurrent | C23: Tumor | D23: Cancer Identification | E23: 450 | F23: 1 | G23: no | H23: no | J23: gen for extract
A24: Site Coding Sys--Original | B24: siteCodingSysOriginal | C24: Tumor | D24: Cancer Identification | E24: 460 | F24: 1 | G24: no | H24: no | J24: gen for extract
A25: Type of Reporting Source | B25: typeOfReportingSource | C25: Tumor | D25: Cancer Identification | E25: 500 | F25: 1 | G25: yes | H25: yes
A26: Addr at DX--City | B26: addrAtDxCity | C26: Tumor | D26: Demographic | E26: 70 | F26: 50 | G26: yes | H26: yes
A27: Addr at DX--Country | B27: addrAtDxCountry | C27: Tumor | D27: Demographic | E27: 102 | F27: 3 | G27: yes | H27: yes
A28: Addr at DX--Postal Code | B28: addrAtDxPostalCode | C28: Tumor | D28: Demographic | E28: 100 | F28: 9 | G28: yes | H28: yes
A29: Addr at DX--State | B29: addrAtDxState | C29: Tumor | D29: Demographic | E29: 80 | F29: 2 | G29: yes | H29: yes
A30: Addr Current--Country | B30: addrCurrentCountry | C30: Patient | D30: Demographic | E30: 1832 | F30: 3 | G30: yes | H30: yes
A31: Age at Diagnosis | B31: ageAtDiagnosis | C31: Tumor | D31: Demographic | E31: 230 | F31: 3 | G31: no | H31: yes, gen by facility | J31: gen on demand
A32: Birthplace--Country | B32: birthplaceCountry | C32: Patient | D32: Demographic | E32: 254 | F32: 3 | G32: yes | H32: yes
A33: Birthplace--State | B33: birthplaceState | C33: Patient | D33: Demographic | E33: 252 | F33: 2 | G33: yes | H33: yes
A34: Census Block Group 2000 | B34: censusBlockGroup2000 | C34: Tumor | D34: Demographic | E34: 362 | F34: 1 | G34: no | H34: no | I34: 4-character length in central system, but 1-character NAACCR XML base dictionary length for data exchanges | J34: geocoding | K34: Item 365 is a subset of item 352
A35: Census Block Group 2010 | B35: censusBlockGroup2010 | C35: Tumor | D35: Demographic | E35: 363 | F35: 1 | G35: no | H35: no | I35: 4-character length in central system, but 1-character NAACCR XML base dictionary length for data exchanges | J35: geocoding | K35: Item 363 is a subset of item 353
A36: Census Block Group 2020 | B36: censusBlockGroup2020 | C36: Tumor | D36: Demographic | E36: 361 | F36: 1 | G36: no | H36: no | I36: 4-character length in central system, but 1-character NAACCR XML base dictionary length for data exchanges | J36: geocoding | K36: Item 361 is a subset of item 354
A37: Census Block Grp 1970/80/90 | B37: censusBlockGrp197090 | C37: Tumor | D37: Demographic | E37: 368 | F37: 1 | G37: no | H37: no | J37: geocoding | K37: Item 368 is a subset of item 351
A38: Census Cod Sys 1970/80/90 | B38: censusCodSys19708090 | C38: Tumor | D38: Demographic | E38: 120 | F38: 1 | G38: no | H38: no | J38: gen for extract
A39: Census Ind Code CDC | B39: censusIndCode2010 | C39: Tumor | D39: Demographic | E39: 272 | F39: 4 | G39: no | H39: no | J39: no | K39: 2025: Renamed
A40: Census Occ Code CDC | B40: censusOccCode2010 | C40: Tumor | D40: Demographic | E40: 282 | F40: 4 | G40: no | H40: no | J40: no | K40: 2025: Renamed
A41: Census Tr Cert 1970/80/90 | B41: censusTrCert19708090 | C41: Tumor | D41: Demographic | E41: 364 | F41: 1 | G41: no | H41: no | J41: geocoding
A42: Census Tr Certainty 2000 | B42: censusTrCertainty2000 | C42: Tumor | D42: Demographic | E42: 365 | F42: 1 | G42: no | H42: no | J42: geocoding
A43: Census Tr Certainity 2010 | B43: censusTrCertainty2010 | C43: Tumor | D43: Demographic | E43: 367 | F43: 1 | G43: no | H43: no | J43: geocoding
A44: Census Tr Poverty Indictr | B44: censusTrPovertyIndictr | C44: Tumor | D44: Demographic | E44: 145 | F44: 1 | G44: no | H44: no | J44: gen for extract
A45: Census Tract 1970/80/90 | B45: censusTract19708090 | C45: Tumor | D45: Demographic | E45: 110 | F45: 6 | G45: no | H45: no | J45: geocoding | K45: Item 110 is a subset of item 351
A46: Census Tract 2000 | B46: censusTract2000 | C46: Tumor | D46: Demographic | E46: 130 | F46: 6 | G46: no | H46: no | J46: geocoding | K46: Item 130 is a subset of item 352
A47: Census Tract 2010 | B47: censusTract2010 | C47: Tumor | D47: Demographic | E47: 135 | F47: 6 | G47: no | H47: no | J47: geocoding | K47: Item 135 is a subset of item 353
A48: Census Tract 2020 | B48: censusTract2020 | C48: Tumor | D48: Demographic | E48: 125 | F48: 6 | G48: no | H48: no | J48: geocoding | K48: Item 125 is a subset of item 354
A49: Census Tract Certainty 2020 | B49: censusTractCertainty2020 | C49: Tumor | D49: Demographic | E49: 369 | F49: 1 | G49: no | H49: no | J49: geocoding
A50: Computed Ethnicity | B50: computedEthnicity | C50: Patient | D50: Demographic | E50: 200 | F50: 1 | G50: no | H50: no | J50: gen for extract
A51: Computed Ethnicity Source | B51: computedEthnicitySource | C51: Patient | D51: Demographic | E51: 210 | F51: 1 | G51: no | H51: no | J51: gen for extract
A52: County at DX Analysis | B52: countyAtDxAnalysis | C52: Tumor | D52: Demographic | E52: 89 | F52: 3 | G52: no | H52: no | J52: gen for extract
A53: County at DX Geocode 1970/80/90 | B53: countyAtDxGeocode1990 | C53: Tumor | D53: Demographic | E53: 94 | F53: 3 | G53: no | H53: no | J53: geocoding | K53: Item 94 is a subset of item 351
A54: County at DX Geocode2000 | B54: countyAtDxGeocode2000 | C54: Tumor | D54: Demographic | E54: 95 | F54: 3 | G54: no | H54: no | J54: geocoding | K54: Item 95 is a subset of item 352
A55: County at DX Geocode2010 | B55: countyAtDxGeocode2010 | C55: Tumor | D55: Demographic | E55: 96 | F55: 3 | G55: no | H55: no | J55: geocoding | K55: Item 96 is a subset of item 353
A56: County at DX Geocode2020 | B56: countyAtDxGeocode2020 | C56: Tumor | D56: Demographic | E56: 97 | F56: 3 | G56: no | H56: no | J56: geocoding | K56: Item 97 is a subset of item 354
A57: County at DX Reported | B57: countyAtDx | C57: Tumor | D57: Demographic | E57: 90 | F57: 3 | G57: yes | H57: yes
A58: Date of Birth | B58: dateOfBirth | C58: Patient | D58: Demographic | E58: 240 | F58: 8 | G58: yes | H58: yes
A59: EDP MDE Link | B59: edpMdeLink | C59: Tumor | D59: Demographic | E59: 531 | F59: 1 | G59: no | H59: no | J59: link external | K59: Item 530 is subset of item 3720.
A60: EDP MDE Link Date | B60: edpMdeLinkDate | C60: Tumor | D60: Demographic | E60: 530 | F60: 8 | G60: no | H60: no | J60: link external | K60: Item 531 is subset of item 3720.
A61: Followup Contact--Country | B61: followupContactCountry | C61: Tumor | D61: Demographic | E61: 1847 | F61: 3 | G61: yes | H61: yes
A62: Geocoding Accuracy Score | B62: geocodingAccuracyScore | C62: Tumor | D62: Demographic | E62: 331 | F62: 4 | G62: no | H62: no | J62: geocoding | K62: 2026: new
A63: Geocoding Accuracy Type | B63: geocodingAccuracyType | C63: Tumor | D63: Demographic | E63: 332 | F63: 21 | G63: no | H63: no | J63: geocoding | K63: 2026: new
A64: Geocoding Quality Code | B64: geocodingQualityCode | C64: Tumor | D64: Demographic | E64: 86 | F64: 1 | G64: no | H64: no | J64: gen in db
A65: Geocoding Quality Code Detail | B65: geocodingQualityCodeDetail | C65: Tumor | D65: Demographic | E65: 87 | F65: 14 | G65: no | H65: no | J65: gen in db
A66: GIS Coordinate Quality | B66: gisCoordinateQuality | C66: Tumor | D66: Demographic | E66: 366 | F66: 2 | G66: no | H66: no | J66: geocoding
A67: IHS Link | B67: ihsLink | C67: Patient | D67: Demographic | E67: 192 | F67: 1 | G67: no | H67: no | J67: link with IHS DB
A68: IHS Purchased/Referred Care Delivery Area | B68: ihsPurchRefCareDeliveryArea | C68: Tumor | D68: Demographic | E68: 194 | F68: 1 | G68: no | H68: no | J68: gen for extract
A69: Industry Source | B69: industrySource | C69: Tumor | D69: Demographic | E69: 300 | F69: 1 | G69: no | H69: no | J69: gen for extract
A70: Marital Status at DX | B70: maritalStatusAtDx | C70: Tumor | D70: Demographic | E70: 150 | F70: 1 | G70: yes | H70: yes
A71: NHIA Derived Hisp Origin | B71: nhiaDerivedHispOrigin | C71: Patient | D71: Demographic | E71: 191 | F71: 1 | G71: no | H71: no | J71: gen in db
A72: Occupation Source | B72: occupationSource | C72: Tumor | D72: Demographic | E72: 290 | F72: 1 | G72: no | H72: no | J72: gen for extract
A73: Place of Death--Country | B73: placeOfDeathCountry | C73: Patient | D73: Demographic | E73: 1944 | F73: 3 | G73: yes | H73: yes
A74: Place of Death--State | B74: placeOfDeathState | C74: Patient | D74: Demographic | E74: 1942 | F74: 2 | G74: yes | H74: yes
A75: Race 1 | B75: race1 | C75: Patient | D75: Demographic | E75: 160 | F75: 2 | G75: yes | H75: yes
A76: Race 2 | B76: race2 | C76: Patient | D76: Demographic | E76: 161 | F76: 2 | G76: yes | H76: yes
A77: Race 3 | B77: race3 | C77: Patient | D77: Demographic | E77: 162 | F77: 2 | G77: yes | H77: yes
A78: Race 4 | B78: race4 | C78: Patient | D78: Demographic | E78: 163 | F78: 2 | G78: yes | H78: yes
A79: Race 5 | B79: race5 | C79: Patient | D79: Demographic | E79: 164 | F79: 2 | G79: yes | H79: yes
A80: Race-NAPIIA (derived API) | B80: raceNapiia | C80: Patient | D80: Demographic | E80: 193 | F80: 2 | G80: no | H80: no | J80: gen in db
A81: RUCA 2000 | B81: ruca2000 | C81: Tumor | D81: Demographic | E81: 339 | F81: 1 | G81: no | H81: no | J81: geocoding
A82: RUCA 2010 | B82: ruca2010 | C82: Tumor | D82: Demographic | E82: 341 | F82: 1 | G82: no | H82: no | J82: geocoding
A83: RUCA 2020 | B83: ruca2020 | C83: Tumor | D83: Demographic | E83: 342 | F83: 1 | G83: no | H83: no | J83: geocoding | K83: 2026: new
A84: RuralUrban Continuum 1993 | B84: ruralurbanContinuum1993 | C84: Tumor | D84: Demographic | E84: 3300 | F84: 2 | G84: no | H84: no
A85: RuralUrban Continuum 2003 | B85: ruralurbanContinuum2003 | C85: Tumor | D85: Demographic | E85: 3310 | F85: 2 | G85: no | H85: no
A86: RuralUrban Continuum 2013 | B86: ruralurbanContinuum2013 | C86: Tumor | D86: Demographic | E86: 3312 | F86: 2 | G86: no | H86: no | J86: gen for extract
A87: Sex | B87: sex | C87: Patient | D87: Demographic | E87: 220 | F87: 1 | G87: yes | H87: yes | I87: California will keep this item as State Specific Data Item and it will be included the XML User-Dictionary
A88: Sex Assigned at Birth | B88: sexAssignedAtBirth | C88: Patient | D88: Demographic | E88: 225 | F88: 1 | G88: no | H88: no | J88: gen in db | K88: Sex Assigned at Birth [225] replaces the existing data item Sex [220] for all cases regardless of diagnosis year. Data in Sex [220] will be converted to populate Sex Assigned at Birth [225]
A89: Spanish/Hispanic Origin | B89: spanishHispanicOrigin | C89: Patient | D89: Demographic | E89: 190 | F89: 1 | G89: yes | H89: yes
A90: State at DX Geocode 1970/80/90 | B90: stateAtDxGeocode19708090 | C90: Tumor | D90: Demographic | E90: 81 | F90: 2 | G90: no | H90: no | J90: geocoding | K90: Item 81 is a subset of item 351
A91: State at DX Geocode 2000 | B91: stateAtDxGeocode2000 | C91: Tumor | D91: Demographic | E91: 82 | F91: 2 | G91: no | H91: no | J91: geocoding | K91: Item 82 is a subset of item 352
A92: State at DX Geocode 2010 | B92: stateAtDxGeocode2010 | C92: Tumor | D92: Demographic | E92: 83 | F92: 2 | G92: no | H92: no | J92: geocoding | K92: Item 83 is a subset of item 353
A93: State at DX Geocode 2020 | B93: stateAtDxGeocode2020 | C93: Tumor | D93: Demographic | E93: 84 | F93: 2 | G93: no | H93: no | J93: geocoding | K93: Item 84 is a subset of item 354
A94: Text--Usual Industry | B94: textUsualIndustry | C94: Tumor | D94: Demographic | E94: 320 | F94: 100 | G94: yes | H94: yes
A95: Text--Usual Occupation | B95: textUsualOccupation | C95: Tumor | D95: Demographic | E95: 310 | F95: 100 | G95: yes | H95: yes
A96: Tobacco Use Smoking Status | B96: tobaccoUseSmokingStatus | C96: Tumor | D96: Demographic | E96: 344 | F96: 1 | G96: yes | H96: conditional | I96: Required if available for DX Year 2022 forward
A97: Urban Indian Organization (UIO) Service Area | B97: uihoFacility | C97: Tumor | D97: Demographic | E97: 285 | F97: 2 | G97: no | H97: no | J97: gen for extract
A98: Urban Indian Organization (UIO) | B98: urbanIndianHealthOrganization | C98: Tumor | D98: Demographic | E98: 284 | F98: 1 | G98: no | H98: no | J98: gen for extract
A99: URIC 2000 | B99: uric2000 | C99: Tumor | D99: Demographic | E99: 345 | F99: 1 | G99: no | H99: no | J99: geocoding
A100: URIC 2010 | B100: uric2010 | C100: Tumor | D100: Demographic | E100: 346 | F100: 1 | G100: no | H100: no | J100: geocoding
A101: URIC 2010 | B101: uric2020 | C101: Tumor | D101: Demographic | E101: 347 | F101: 1 | G101: no | H101: no | J101: geocoding | K101: 2026: new
A102: AJCC API Version Current | B102: ajccApiVersionCurrent | C102: Tumor | D102: Edit Overrides/Conversion History/System Admin | E102: 2156 | F102: 8 | G102: yes | H102: conditional | I102: gen by facility if available for DX Year 2018 forward
A103: AJCC API Version Original | B103: ajccApiVersionOriginal | C103: Tumor | D103: Edit Overrides/Conversion History/System Admin | E103: 2157 | F103: 8 | G103: no | H103: conditional | I103: gen by facility if available for DX Year 2018 forward
A104: AJCC Cancer Surveillance DLL Version Current | B104: ajccCancerSurvApiVersionCurrent | C104: Tumor | D104: Edit Overrides/Conversion History/System Admin | E104: 2158 | F104: 13 | G104: yes | H104: conditional | I104: gen by facility if available for DX Year 2018 forward
A105: AJCC Cancer Surveillance DLL Version Original | B105: ajccCancerSurvApiVersionOriginal | C105: Tumor | D105: Edit Overrides/Conversion History/System Admin | E105: 2159 | F105: 13 | G105: no | H105: conditional | I105: gen by facility if available for DX Year 2018 forward
A106: Behavior (73-91) ICD-O-1 | B106: behaviorIcdO1 | C106: Tumor | D106: Edit Overrides/Conversion History/System Admin | E106: 1972 | F106: 1 | G106: no | H106: no | K106: Item 1972 is a subset of item 1970.
A107: CoC Accredited Flag | B107: cocAccreditedFlag | C107: Tumor | D107: Edit Overrides/Conversion History/System Admin | E107: 2152 | F107: 1 | G107: yes | H107: yes
A108: COC Coding Sys--Current | B108: cocCodingSysCurrent | C108: Tumor | D108: Edit Overrides/Conversion History/System Admin | E108: 2140 | F108: 2 | G108: no | H108: no | J108: gen for extract
A109: COC Coding Sys--Original | B109: cocCodingSysOriginal | C109: Tumor | D109: Edit Overrides/Conversion History/System Admin | E109: 2150 | F109: 2 | G109: no | H109: no | J109: gen for extract
A110: Date Case Completed | B110: dateCaseCompleted | C110: Tumor | D110: Edit Overrides/Conversion History/System Admin | E110: 2090 | F110: 8 | G110: no | H110: yes, gen by facility
A111: Date Case Completed--CoC | B111: dateCaseCompletedCoc | C111: Tumor | D111: Edit Overrides/Conversion History/System Admin | E111: 2092 | F111: 8 | G111: no | H111: no
A112: Date Case Initiated | B112: dateCaseInitiated | C112: Tumor | D112: Edit Overrides/Conversion History/System Admin | E112: 2085 | F112: 8 | G112: no | H112: yes, gen by facility
A113: Date Case Last Changed | B113: dateCaseLastChanged | C113: Tumor | D113: Edit Overrides/Conversion History/System Admin | E113: 2100 | F113: 8 | G113: no | H113: yes, gen by facility
A114: Date Case Report Exported | B114: dateCaseReportExported | C114: Tumor | D114: Edit Overrides/Conversion History/System Admin | E114: 2110 | F114: 8 | G114: no | H114: yes, gen by facility | I114: Capture the export/transmit date for the original new case abstract and use this value with the each export/transmit date for each modified record thereafter to accommodate the SEER interpretation of this NAACCR field.
A115: Date Case Report Loaded | B115: dateCaseReportLoaded | C115: Tumor | D115: Edit Overrides/Conversion History/System Admin | E115: 2112 | F115: 8 | G115: no | H115: no | I115: DO NOT OVERWRITE ORIGINAL NEW CASE ABSTRACT'S VALUE WITH A MODIFIED RECORD'S VALUE. | J115: gen in db
A116: Date Case Report Received | B116: dateCaseReportReceived | C116: Tumor | D116: Edit Overrides/Conversion History/System Admin | E116: 2111 | F116: 8 | G116: no | H116: no | I116: DO NOT OVERWRITE ORIGINAL NEW CASE ABSTRACT'S VALUE WITH A MODIFIED RECORD'S VALUE. | J116: gen in db
A117: Date Tumor Record Availbl | B117: dateTumorRecordAvailbl | C117: Tumor | D117: Edit Overrides/Conversion History/System Admin | E117: 2113 | F117: 8 | G117: no | H117: no | J117: gen in db
A118: Grade (73-91) ICD-O-1 | B118: gradeIcdO1 | C118: Tumor | D118: Edit Overrides/Conversion History/System Admin | E118: 1973 | F118: 1 | G118: no | H118: no | K118: Item 1973 is a subset of item 1970.
A119: Histology (73-91) ICD-O-1 | B119: histologyIcdO1 | C119: Tumor | D119: Edit Overrides/Conversion History/System Admin | E119: 1971 | F119: 4 | G119: no | H119: no | K119: Item 1971 is a subset of item 1970.
A120: ICD-O-3 Conversion Flag | B120: icdO3ConversionFlag | C120: Tumor | D120: Edit Overrides/Conversion History/System Admin | E120: 2116 | F120: 1 | G120: yes | H120: yes
A121: Over-ride Acsn/Class/Seq | B121: overRideAcsnClassSeq | C121: Tumor | D121: Edit Overrides/Conversion History/System Admin | E121: 1985 | F121: 1 | G121: no | H121: no
A122: Over-ride Age/Site/Morph | B122: overRideAgeSiteMorph | C122: Tumor | D122: Edit Overrides/Conversion History/System Admin | E122: 1990 | F122: 1 | G122: yes | H122: yes*
A123: Over-ride COC-Site/Type | B123: overRideCocSiteType | C123: Tumor | D123: Edit Overrides/Conversion History/System Admin | E123: 1987 | F123: 1 | G123: no | H123: no
A124: Over-ride CS 1 | B124: overRideCs1 | C124: Tumor | D124: Edit Overrides/Conversion History/System Admin | E124: 3750 | F124: 1 | G124: no | H124: no
A125: Over-ride CS 10 | B125: overRideCs10 | C125: Tumor | D125: Edit Overrides/Conversion History/System Admin | E125: 3759 | F125: 1 | G125: no | H125: no
A126: Over-ride CS 11 | B126: overRideCs11 | C126: Tumor | D126: Edit Overrides/Conversion History/System Admin | E126: 3760 | F126: 1 | G126: no | H126: no
A127: Over-ride CS 12 | B127: overRideCs12 | C127: Tumor | D127: Edit Overrides/Conversion History/System Admin | E127: 3761 | F127: 1 | G127: no | H127: no
A128: Over-ride CS 13 | B128: overRideCs13 | C128: Tumor | D128: Edit Overrides/Conversion History/System Admin | E128: 3762 | F128: 1 | G128: no | H128: no
A129: Over-ride CS 14 | B129: overRideCs14 | C129: Tumor | D129: Edit Overrides/Conversion History/System Admin | E129: 3763 | F129: 1 | G129: no | H129: no
A130: Over-ride CS 15 | B130: overRideCs15 | C130: Tumor | D130: Edit Overrides/Conversion History/System Admin | E130: 3764 | F130: 1 | G130: no | H130: no
A131: Over-ride CS 16 | B131: overRideCs16 | C131: Tumor | D131: Edit Overrides/Conversion History/System Admin | E131: 3765 | F131: 1 | G131: no | H131: no
A132: Over-ride CS 17 | B132: overRideCs17 | C132: Tumor | D132: Edit Overrides/Conversion History/System Admin | E132: 3766 | F132: 1 | G132: no | H132: no
A133: Over-ride CS 18 | B133: overRideCs18 | C133: Tumor | D133: Edit Overrides/Conversion History/System Admin | E133: 3767 | F133: 1 | G133: no | H133: no
A134: Over-ride CS 19 | B134: overRideCs19 | C134: Tumor | D134: Edit Overrides/Conversion History/System Admin | E134: 3768 | F134: 1 | G134: no | H134: no
A135: Over-ride CS 2 | B135: overRideCs2 | C135: Tumor | D135: Edit Overrides/Conversion History/System Admin | E135: 3751 | F135: 1 | G135: no | H135: no
A136: Over-ride CS 20 | B136: overRideCs20 | C136: Tumor | D136: Edit Overrides/Conversion History/System Admin | E136: 3769 | F136: 1 | G136: no | H136: no
A137: Over-ride CS 3 | B137: overRideCs3 | C137: Tumor | D137: Edit Overrides/Conversion History/System Admin | E137: 3752 | F137: 1 | G137: no | H137: no
A138: Over-ride CS 4 | B138: overRideCs4 | C138: Tumor | D138: Edit Overrides/Conversion History/System Admin | E138: 3753 | F138: 1 | G138: no | H138: no
A139: Over-ride CS 5 | B139: overRideCs5 | C139: Tumor | D139: Edit Overrides/Conversion History/System Admin | E139: 3754 | F139: 1 | G139: no | H139: no
A140: Over-ride CS 6 | B140: overRideCs6 | C140: Tumor | D140: Edit Overrides/Conversion History/System Admin | E140: 3755 | F140: 1 | G140: no | H140: no
A141: Over-ride CS 7 | B141: overRideCs7 | C141: Tumor | D141: Edit Overrides/Conversion History/System Admin | E141: 3756 | F141: 1 | G141: no | H141: no
A142: Over-ride CS 8 | B142: overRideCs8 | C142: Tumor | D142: Edit Overrides/Conversion History/System Admin | E142: 3757 | F142: 1 | G142: no | H142: no
A143: Over-ride CS 9 | B143: overRideCs9 | C143: Tumor | D143: Edit Overrides/Conversion History/System Admin | E143: 3758 | F143: 1 | G143: no | H143: no
A144: Over-ride Histology | B144: overRideHistology | C144: Tumor | D144: Edit Overrides/Conversion History/System Admin | E144: 2040 | F144: 1 | G144: yes | H144: yes*
A145: Over-ride HospSeq/DxConf | B145: overRideHospseqDxconf | C145: Tumor | D145: Edit Overrides/Conversion History/System Admin | E145: 1986 | F145: 1 | G145: no | H145: no
A146: Over-ride HospSeq/Site | B146: overRideHospseqSite | C146: Tumor | D146: Edit Overrides/Conversion History/System Admin | E146: 1988 | F146: 1 | G146: yes | H146: yes*
A147: Over-ride Ill-define Site | B147: overRideIllDefineSite | C147: Tumor | D147: Edit Overrides/Conversion History/System Admin | E147: 2060 | F147: 1 | G147: yes | H147: yes*
A148: Over-ride Leuk, Lymphoma | B148: overRideLeukLymphoma | C148: Tumor | D148: Edit Overrides/Conversion History/System Admin | E148: 2070 | F148: 1 | G148: yes | H148: yes*
A149: Over-ride Name/Sex Assigned at Birth | B149: overRideNameSex | C149: Patient | D149: Edit Overrides/Conversion History/System Admin | E149: 2078 | F149: 1 | G149: yes | H149: yes* | K149: 2026: Renamed
A150: Over-ride Report Source | B150: overRideReportSource | C150: Tumor | D150: Edit Overrides/Conversion History/System Admin | E150: 2050 | F150: 1 | G150: yes | H150: yes*
A151: Over-ride SeqNo/DxConf | B151: overRideSeqnoDxconf | C151: Tumor | D151: Edit Overrides/Conversion History/System Admin | E151: 2000 | F151: 1 | G151: no | H151: no | J151: gen in db
A152: Over-ride Site/Behavior | B152: overRideSiteBehavior | C152: Tumor | D152: Edit Overrides/Conversion History/System Admin | E152: 2071 | F152: 1 | G152: yes | H152: yes*
A153: Over-ride Site/EOD/DX Dt | B153: overRideSiteEodDxDt | C153: Tumor | D153: Edit Overrides/Conversion History/System Admin | E153: 2072 | F153: 1 | G153: yes | H153: yes*
A154: Over-ride Site/Lat/EOD | B154: overRideSiteLatEod | C154: Tumor | D154: Edit Overrides/Conversion History/System Admin | E154: 2073 | F154: 1 | G154: yes | H154: yes*
A155: Over-ride Site/Lat/Morph | B155: overRideSiteLatMorph | C155: Tumor | D155: Edit Overrides/Conversion History/System Admin | E155: 2074 | F155: 1 | G155: yes | H155: yes*
A156: Over-ride Site/Lat/SeqNo | B156: overRideSiteLatSeqno | C156: Tumor | D156: Edit Overrides/Conversion History/System Admin | E156: 2010 | F156: 1 | G156: yes | H156: yes*
A157: Over-ride Site/TNM-StgGrp | B157: overRideSiteTnmStggrp | C157: Tumor | D157: Edit Overrides/Conversion History/System Admin | E157: 1989 | F157: 1 | G157: yes | H157: yes*
A158: Over-ride Site/Type | B158: overRideSiteType | C158: Tumor | D158: Edit Overrides/Conversion History/System Admin | E158: 2030 | F158: 1 | G158: yes | H158: yes*
A159: Over-ride SS/NodesPos | B159: overRideSsNodespos | C159: Tumor | D159: Edit Overrides/Conversion History/System Admin | E159: 1981 | F159: 1 | G159: yes | H159: yes*
A160: Over-ride SS/ TNM-M | B160: overRideSsTnmM | C160: Tumor | D160: Edit Overrides/Conversion History/System Admin | E160: 1983 | F160: 1 | G160: yes | H160: yes*
A161: Over-ride SS/ TNM-N | B161: overRideSsTnmN | C161: Tumor | D161: Edit Overrides/Conversion History/System Admin | E161: 1982 | F161: 1 | G161: yes | H161: yes*
A162: Over-ride Surg/DxConf | B162: overRideSurgDxconf | C162: Tumor | D162: Edit Overrides/Conversion History/System Admin | E162: 2020 | F162: 1 | G162: yes | H162: yes*
A163: Over-ride TNM 3 | B163: overRideTnm3 | C163: Tumor | D163: Edit Overrides/Conversion History/System Admin | E163: 1994 | F163: 1 | G163: no | H163: no
A164: Over-ride TNM Stage | B164: overRideTnmStage | C164: Tumor | D164: Edit Overrides/Conversion History/System Admin | E164: 1992 | F164: 1 | G164: yes | H164: yes*
A165: Over-ride TNM Tis | B165: overRideTnmTis | C165: Tumor | D165: Edit Overrides/Conversion History/System Admin | E165: 1993 | F165: 1 | G165: yes | H165: yes*
A166: Schema ID Version Current | B166: schemaIdVersionCurrent | C166: Tumor | D166: Edit Overrides/Conversion History/System Admin | E166: 2117 | F166: 5 | G166: yes | H166: conditional | I166: gen by facility if available for DX Year 2018 forward | J166: gen in db
A167: Schema ID Version Original | B167: schemaIdVersionOriginal | C167: Tumor | D167: Edit Overrides/Conversion History/System Admin | E167: 2118 | F167: 5 | G167: no | H167: conditional | I167: gen by facility if available for DX Year 2018 forward | J167: gen in db
A168: Site (73-91) ICD-O-1 | B168: siteIcdO1 | C168: Tumor | D168: Edit Overrides/Conversion History/System Admin | E168: 1960 | F168: 4 | G168: no | H168: no
A169: Vendor Name | B169: vendorName | C169: Tumor | D169: Edit Overrides/Conversion History/System Admin | E169: 2170 | F169: 10 | G169: no | H169: yes, gen by facility | J169: gen for extract
A170: Addr Current--City | B170: addrCurrentCity | C170: Patient | D170: Follow-up/Recurrence/Death | E170: 1810 | F170: 50 | G170: yes | H170: yes*
A171: Addr Current--Postal Code | B171: addrCurrentPostalCode | C171: Patient | D171: Follow-up/Recurrence/Death | E171: 1830 | F171: 9 | G171: yes | H171: yes*
A172: Addr Current--State | B172: addrCurrentState | C172: Patient | D172: Follow-up/Recurrence/Death | E172: 1820 | F172: 2 | G172: yes | H172: yes*
A173: Autopsy | B173: autopsy | C173: Patient | D173: Follow-up/Recurrence/Death | E173: 1930 | F173: 1 | G173: no | H173: no
A174: Cancer Status | B174: cancerStatus | C174: Tumor | D174: Follow-up/Recurrence/Death | E174: 1770 | F174: 1 | G174: yes | H174: yes
A175: Cause of Death | B175: causeOfDeath | C175: Patient | D175: Follow-up/Recurrence/Death | E175: 1910 | F175: 4 | G175: no | H175: no | J175: death clearance
A176: County--Current | B176: countyCurrent | C176: Patient | D176: Follow-up/Recurrence/Death | E176: 1840 | F176: 3 | G176: no | H176: no
A177: Date of Death--Canada | B177: dateOfDeathCanada | C177: Patient | D177: Follow-up/Recurrence/Death | E177: 1755 | F177: 8 | G177: no | H177: no
A178: Date of Last Cancer (tumor) Status | B178: dateOfLastCancerStatus | C178: Tumor | D178: Follow-up/Recurrence/Death | E178: 1772 | F178: 8 | G178: yes | H178: yes
A179: Date of Last Contact | B179: dateOfLastContact | C179: Patient | D179: Follow-up/Recurrence/Death | E179: 1750 | F179: 8 | G179: yes | H179: yes
A180: Follow-Up Contact--City | B180: followUpContactCity | C180: Tumor | D180: Follow-up/Recurrence/Death | E180: 1842 | F180: 50 | G180: yes | H180: yes*
A181: Follow-Up Contact--Postal | B181: followUpContactPostal | C181: Tumor | D181: Follow-up/Recurrence/Death | E181: 1846 | F181: 9 | G181: yes | H181: yes*
A182: Follow-Up Contact--State | B182: followUpContactState | C182: Tumor | D182: Follow-up/Recurrence/Death | E182: 1844 | F182: 2 | G182: yes | H182: yes*
A183: Follow-Up Source | B183: followUpSource | C183: Tumor | D183: Follow-up/Recurrence/Death | E183: 1790 | F183: 1 | G183: no | H183: no
A184: Follow-Up Source Central | B184: followUpSourceCentral | C184: Patient | D184: Follow-up/Recurrence/Death | E184: 1791 | F184: 2 | G184: no | H184: no | J184: gen for extract
A185: ICD Revision Number | B185: icdRevisionNumber | C185: Patient | D185: Follow-up/Recurrence/Death | E185: 1920 | F185: 1 | G185: no | H185: no | J185: gen for extract
A186: Next Follow-Up Source | B186: nextFollowUpSource | C186: Tumor | D186: Follow-up/Recurrence/Death | E186: 1800 | F186: 1 | G186: no | H186: no
A187: No Patient Contact Flag | B187: noPatientContactFlag | C187: Patient | D187: Follow-up/Recurrence/Death | E187: 1854 | F187: 1 | G187: yes | H187: yes
A188: Record Number Recode | B188: recordNumberRecode | C188: Tumor | D188: Follow-up/Recurrence/Death | E188: 1775 | F188: 2 | G188: no | H188: no | J188: gen for extract
A189: Recurrence Date--1st | B189: recurrenceDate1st | C189: Tumor | D189: Follow-up/Recurrence/Death | E189: 1860 | F189: 8 | G189: yes | H189: yes*
A190: Recurrence Type--1st | B190: recurrenceType1st | C190: Tumor | D190: Follow-up/Recurrence/Death | E190: 1880 | F190: 2 | G190: yes | H190: yes*
A191: Reporting facility restriction flag | B191: reportingFacilityRestrictionFlag | C191: Tumor | D191: Follow-up/Recurrence/Death | E191: 1856 | F191: 2 | G191: no | H191: no | J191: gen for extract
A192: SEER Cause Specific COD | B192: seerCauseSpecificCod | C192: Tumor | D192: Follow-up/Recurrence/Death | E192: 1914 | F192: 1 | G192: no | H192: no | J192: gen for extract
A193: SEER Other COD | B193: seerOtherCod | C193: Tumor | D193: Follow-up/Recurrence/Death | E193: 1915 | F193: 1 | G193: no | H193: no | J193: gen for extract
A194: Surv-Date Active Followup | B194: survDateActiveFollowup | C194: Tumor | D194: Follow-up/Recurrence/Death | E194: 1782 | F194: 8 | G194: no | H194: no | J194: gen for extract
A195: Surv-Date DX Recode | B195: survDateDxRecode | C195: Tumor | D195: Follow-up/Recurrence/Death | E195: 1788 | F195: 8 | G195: no | H195: no | J195: gen for extract
A196: Surv-Date Presumed Alive | B196: survDatePresumedAlive | C196: Tumor | D196: Follow-up/Recurrence/Death | E196: 1785 | F196: 8 | G196: no | H196: no | J196: gen for extract
A197: Surv-Flag Active Followup | B197: survFlagActiveFollowup | C197: Tumor | D197: Follow-up/Recurrence/Death | E197: 1783 | F197: 1 | G197: no | H197: no | J197: gen for extract
A198: Surv-Flag Presumed Alive | B198: survFlagPresumedAlive | C198: Tumor | D198: Follow-up/Recurrence/Death | E198: 1786 | F198: 1 | G198: no | H198: no | J198: gen for extract
A199: Surv-Mos Active Followup | B199: survMosActiveFollowup | C199: Tumor | D199: Follow-up/Recurrence/Death | E199: 1784 | F199: 4 | G199: no | H199: no | J199: gen for extract
A200: Surv-Mos Presumed Alive | B200: survMosPresumedAlive | C200: Tumor | D200: Follow-up/Recurrence/Death | E200: 1787 | F200: 4 | G200: no | H200: no | J200: gen for extract
... 674 more rows

Sheet D-Deletion Record
A1: Appendix D: Deletion Record
A2: Data Item Name | B2: CCR Identifier | C2: NAACCR Identifier | D2: Col Start | E2: Col End | F2: Length | G2: CCR Required from Reporting Facility Software
A3: Record Type [D] | B3: E1000 | C3: 10 | D3: 1 | E3: 1 | F3: 1 | G3: yes, gen by facility
A4: Record Version [L] | B4: E1003 | C4: 50 | D4: =E3+1 -> 2 | E4: =E3+F4 -> 2 | F4: 1 | G4: yes, gen by facility
A5: Reporting Facility | B5: E1081 | C5: 540 | D5: =E4+1 -> 3 | E5: =E4+F5 -> 12 | F5: 10 | G5: yes
A6: Coding Proc | B6: E1576 | C6: 70000 | D6: =E5+1 -> 13 | E6: =E5+F6 -> 14 | F6: 2 | G6: yes, gen by facility
A7: Accession Number--Hosp | B7: E1084 | C7: 550 | D7: 15 | E7: 23 | F7: 9 | G7: yes
A8: Sequence Number Hospital | B8: E1085 | C8: 560 | D8: 24 | E8: 25 | F8: 2 | G8: yes
A9: Hospital Tumor Number CCR | B9: E1571 | C9: 70014 | D9: 26 | E9: 27 | F9: 2 | G9: yes, gen by facility
A10: Hosp Pat Number | B10: E1743 | C10: 70013 | D10: 28 | E10: 39 | F10: 12 | G10: yes, gen by facility
A11: Patient ID Number | B11: E1007 | C11: 20 | D11: 40 | E11: 47 | F11: 8 | G11: yes*
A12: Tumor Record Number | B12: E1006 | C12: 60 | D12: 48 | E12: 49 | F12: 2 | G12: yes*
A13: Medical Record Number | B13: E1645 | C13: 2300 | D13: 50 | E13: 64 | F13: 15 | G13: yes*
A14: Social Security Number | B14: E1647 | C14: 2320 | D14: 65 | E14: 73 | F14: 9 | G14: yes*
A15: SSN Suffix | B15: E1565 | C15: 70048 | D15: 74 | E15: 75 | F15: 2 | G15: yes*
A16: Name--Last | B16: E1637 | C16: 2230 | D16: 76 | E16: 115 | F16: 40 | G16: yes
A17: Name--First | B17: E1638 | C17: 2240 | D17: 116 | E17: 155 | F17: 40 | G17: yes
A18: Date of Birth | B18: E1033 | C18: 240 | D18: 156 | E18: 163 | F18: 8 | G18: yes
A19: Sex | B19: E1031 | C19: 220 | D19: 164 | E19: 164 | F19: 1 | G19: yes
A20: Sex Assigned at Birth | C20: 225 | D20: =E18+1 -> 164 | E20: =E18+F20 -> 164 | F20: 1 | G20: yes
A21: Primary Site | B21: E1055 | C21: 400 | D21: =E19+1 -> 165 | E21: =E19+F21 -> 168 | F21: 4 | G21: yes
A22: Laterality | B22: E1056 | C22: 410 | D22: 169 | E22: 169 | F22: 1 | G22: yes
A23: Histology (92-00) ICD-O-2 | B23: E1058 | C23: 420 | D23: 170 | E23: 173 | F23: 4 | G23: yes
A24: Behavior (92-00) ICD-O-2 | B24: E1059 | C24: 430 | D24: 174 | E24: 174 | F24: 1 | G24: yes
A25: Date of Diagnosis | B25: E1053 | C25: 390 | D25: 175 | E25: 182 | F25: 8 | G25: yes
A26: Histologic Type - ICD-O-3 | B26: E1061 | C26: 522 | D26: =E25+1 -> 183 | E26: =E25+F26 -> 186 | F26: 4 | G26: yes
A27: Behavior Code - ICD-O-3 | B27: E1062 | C27: 523 | D27: 187 | E27: 187 | F27: 1 | G27: yes
A28: Transmit Vendor Version | B28: E1589 | C28: 70057 | D28: =E27+1 -> 188 | E28: =E27+F28 -> 197 | F28: 10 | G28: yes, gen by facility
A29: Record Area: Deletion Fields
A30: Date of 1st Contact | B30: E1087 | C30: 580 | D30: =E28+1 -> 198 | E30: =E28 +F30 -> 205 | F30: 8 | G30: yes
A31: Text - Transaction Remarks | B31: E1759 | C31: none | D31: =E30+1 -> 206 | E31: =E30+F31 -> 355 | F31: 150 | G31: yes
A32: Reserved | B32: none | C32: none | D32: =E31+1 -> 356 | E32: =E31+F32 -> 365 | F32: 10 | G32: yes
A653: Reserved
A657: Reserved

Sheet S-Follow-Up Record
A1: Appendix S: Shared Follow-Up Record Layout
A2: Data Item Name | B2: CCR Identifier | C2: NAACCR Identifier | D2: Col Start | E2: Col End | F2: Length | G2: CCR Required from Reporting Facility Software (mostly from Appendix A; included here for reference)
A3: Record Type [S] | B3: E1000 | C3: 10 | D3: 1 | E3: 1 | F3: 1 | G3: gen by CCR
A4: Record Version [T] | B4: E1003 | C4: 50 | D4: =E3+1 -> 2 | E4: =E3+F4 -> 2 | F4: 1 | G4: gen by CCR
A5: Reporting Facility | B5: E1081 | C5: 540 | D5: =E4+1 -> 3 | E5: 12 | F5: 10 | G5: yes
A6: Coding Proc | B6: E1576 | C6: 70000 | D6: 13 | E6: 14 | F6: 2 | G6: yes, gen by facility
A7: Accession Number--Hosp | B7: E1084 | C7: 550 | D7: 15 | E7: 23 | F7: 9 | G7: yes
A8: Sequence Number--Hospital | B8: E1085 | C8: 560 | D8: 24 | E8: 25 | F8: 2 | G8: yes
A9: Hospital Tumor Number CCR | B9: E1571 | C9: 70014 | D9: 26 | E9: 27 | F9: 2 | G9: yes, gen by facility
A10: Hosp Pat No | B10: E1743 | C10: 70013 | D10: 28 | E10: =E9+F10 -> 39 | F10: 12 | G10: yes, gen by facility
A11: Patient ID Number | B11: E1007 | C11: 20 | D11: 40 | E11: 47 | F11: 8 | G11: yes*
A12: Tumor Record Number | B12: E1006 | C12: 60 | D12: 48 | E12: 49 | F12: 2 | G12: yes*
A13: Medical Record Number | B13: E1645 | C13: 2300 | D13: 50 | E13: 64 | F13: 15 | G13: yes*
A14: Social Security Number | B14: E1647 | C14: 2320 | D14: 65 | E14: 73 | F14: 9 | G14: yes*
A15: SSN Suffix | B15: E1565 | C15: 70048 | D15: 74 | E15: 75 | F15: 2 | G15: yes*
A16: Name--Last | B16: E1637 | C16: 2230 | D16: 76 | E16: 115 | F16: 40 | G16: yes
A17: Name--First | B17: E1638 | C17: 2240 | D17: 116 | E17: 155 | F17: 40 | G17: yes
A18: Date of Birth | B18: E1033 | C18: 240 | D18: 156 | E18: 163 | F18: 8 | G18: yes
A19: Sex | B19: E1031 | C19: 220 | D19: 164 | E19: 164 | F19: 1 | G19: yes
A20: Sex Assigned at Birth | C20: 225 | D20: =E18+1 -> 164 | E20: =E18+F20 -> 164 | F20: 1 | G20: yes
A21: Primary Site | B21: E1055 | C21: 400 | D21: =E19+1 -> 165 | E21: =E19+F21 -> 168 | F21: 4 | G21: yes
A22: Laterality | B22: E1056 | C22: 410 | D22: 169 | E22: 169 | F22: 1 | G22: yes
A23: Histology (92-00) ICD-O-2 | B23: E1058 | C23: 420 | D23: 170 | E23: 173 | F23: 4 | G23: yes
A24: Behavior (92-00) ICD-O-2 | B24: E1059 | C24: 430 | D24: 174 | E24: 174 | F24: 1 | G24: yes
A25: Date of Diagnosis | B25: E1053 | C25: 390 | D25: 175 | E25: 182 | F25: 8 | G25: yes
A26: Histologic Type - ICD-O-3 | B26: E1061 | C26: 522 | D26: =E25+1 -> 183 | E26: =E25+F26 -> 186 | F26: 4 | G26: yes
A27: Behavior Code - ICD-O-3 | B27: E1062 | C27: 523 | D27: 187 | E27: 187 | F27: 1 | G27: yes
A28: Transmit Vendor Version | B28: E1589 | C28: 70057 | D28: =E27+1 -> 188 | E28: 197 | F28: 10 | G28: yes, gen by facility
A29: Record Area: Follow-Up
A30: Reserved | B30: none | C30: none | D30: =E28+1 -> 198 | E30: =E28+F30 -> 212 | F30: 15
A31: Date of Last Contact | B31: E1516 | C31: 1750 | D31: =E30+1 -> 213 | E31: =E30+F31 -> 220 | F31: 8 | G31: yes
A32: Vital Status | B32: E1518 | C32: 1760 | D32: =E31+1 -> 221 | E32: =E31+F32 -> 221 | F32: 1 | G32: yes
A33: Date of Last Cancer (tumor) Status | B33: E1896 | C33: 1772 | D33: 222 | E33: =E32+F33 -> 229 | F33: 8 | G33: yes
A34: Cancer Status | B34: E1519 | C34: 1770 | D34: =E33+1 -> 230 | E34: =E33+F34 -> 230 | F34: 1 | G34: yes
A35: Follow-Up Hospital Last | B35: E1628 | C35: 2430 | D35: 231 | E35: 240 | F35: 10 | G35: yes
A36: Reserved | B36: none | C36: none | D36: 241 | E36: 245 | F36: 5 | G36: yes
A37: Follow-Up Last Type (Patient) | B37: E1580 | C37: 70010 | D37: 246 | E37: 247 | F37: 2 | G37: yes
A38: Follow-Up Last Type (Tumor) | B38: E1584 | C38: 70011 | D38: 248 | E38: 249 | F38: 2 | G38: yes
A39: Reserved for Expansion | B39: none | C39: none | D39: =E38+1 -> 250 | E39: =E38+F39 -> 254 | F39: 5
A40: Follow-Up Next Type | B40: E1581 | C40: 70012 | D40: 255 | E40: 255 | F40: 1 | G40: yes*
A41: Physician--Follow-Up | B41: E1668 | C41: 2470 | D41: 256 | E41: 263 | F41: 8 | G41: yes*
A42: Cause of Death | B42: E1534 | C42: 1910 | D42: 264 | E42: 267 | F42: 4 | G42: may
A43: Place of Death - State | B43: E1773 | C43: 1942 | D43: 268 | E43: 269 | F43: 2 | G43: yes*
A44: [blank] | B44: none | C44: none | D44: 270 | E44: =E43+F44 -> 270 | F44: 1 | G44: N/A
A45: Date Case Last Changed | B45: E1483 | C45: 2100 | D45: 271 | E45: =E44+F45 -> 278 | F45: 8 | G45: yes, gen by facility
A46: DC State File Number | B46: E1653 | C46: 2380 | D46: 279 | E46: 290 | F46: 12 | G46: may
A47: Contact Name | B47: E1740 | C47: 70001 | D47: 291 | E47: 350 | F47: 60 | G47: yes*
A48: Addr Current--No & Street | B48: E1650 | C48: 2350 | D48: 351 | E48: 410 | F48: 60 | G48: yes*
A49: Addr Current--Supplementl | B49: E1651 | C49: 2355 | D49: 411 | E49: 470 | F49: 60 | G49: yes*
A50: Addr Current--City | B50: E1523 | C50: 1810 | D50: 471 | E50: 520 | F50: 50 | G50: yes*
A51: Addr Current--State | B51: E1524 | C51: 1820 | D51: 521 | E51: 522 | F51: 2 | G51: yes*
A52: Addr Current--Postal Code | B52: E1525 | C52: 1830 | D52: 523 | E52: 531 | F52: 9 | G52: yes*
A53: Telephone | B53: E1652 | C53: 2360 | D53: =E52+1 -> 532 | E53: 541 | F53: 10 | G53: yes*
A54: No Patient Contact Flag | B54: E2137 | C54: 1854 | D54: 542 | E54: 542 | F54: 1 | G54: yes
A55: Follow-Up Contact--Name | B55: E1654 | C55: 2394 | D55: 543 | E55: =E54+F55 -> 602 | F55: 60 | G55: yes*
A56: Follow-Up Contact--No&St | B56: E1655 | C56: 2392 | D56: 603 | E56: 662 | F56: 60 | G56: yes*
A57: Follow-Up Contact--Suppl | B57: E1656 | C57: 2393 | D57: 663 | E57: 722 | F57: 60 | G57: yes*
A58: Follow-Up Contact--City | B58: E1531 | C58: 1842 | D58: 723 | E58: 772 | F58: 50 | G58: yes*
A59: Follow-Up Contact--State | B59: E1532 | C59: 1844 | D59: 773 | E59: 774 | F59: 2 | G59: yes*
A60: Follow-Up Contact--Postal | B60: E1533 | C60: 1846 | D60: 775 | E60: 783 | F60: 9 | G60: yes*
A61: Place of Death - Country | B61: E1774 | C61: 1944 | D61: 784 | E61: 786 | F61: 3 | G61: yes*
A62: Addr Current - Country | B62: E1769 | C62: 1832 | D62: 787 | E62: 789 | F62: 3 | G62: yes*
A63: Followup Contact - Country | B63: E1772 | C63: 1847 | D63: 790 | E63: 792 | F63: 3 | G63: yes*
A64: Reserved | B64: none | C64: none | D64: 793 | E64: =E63+F64 -> 795 | F64: 3
A652: Reserved
A656: Reserved
